[Event "Swietokrzyskie IM Chess-ch 2022"]
[Site "Zagnansk"]
[Date "2022.05.06"]
[Round "9.3"]
[White "Krzywda, CM Andrzej"]
[Black "Chylewski, FM Patryk"]
[Result "0-1"]
[ECO "C42"]
[WhiteElo "2152"]
[BlackElo "2281"]
[Annotator "TA"]
[PlyCount "218"]
[EventDate "2022.04.29"]
[EventCountry "POL"]
[SourceTitle "playchess.com"]
[Source "ChessBase"]
[SourceQuality "1"]
[TimeControl "40/5400+30:1800+30"]

{[%evp 19,218,26,29,29,33,0,0,0,-6,-2,0,-20,-8,-10,0,-23,-11,-22,-20,-22,0,0,0,0,0,0,0,0,0,-16,-12,-31,-25,-82,-76,-164,-49,-55,-51,-117,-73,-103,-102,-109,-82,-77,-7,-22,-10,-50,-55,-54,-4,-8,-11,-18,-16,-7,-14,-14,0,0,0,-4,0,0,23,0,0,0,34,-59,0,0,38,0,85,-25,81,0,0,-12,-18,-5,-9,-14,-16,-61,-59,-56,-51,-88,-49,-87,-61,-68,-61,-59,-52,-55,0,-8,-18,-39,-13,-234,-207,-183,-149,-221,-193,-293,-279,-293,-289,-337,-260,-263,-269,-270,-256,-280,-278,-247,-98,-76,0,-270,-172,-164,-130,-169,-132,-188,-154,-144,-149,-155,-150,-369,-339,-314,-276,-595,-568,-503,-306,-448,-380,-356,0,-393,0,-348,-333,-5013,-5527,-12837,-12838,-12838,-12834,-12840,-12840,-12841,-12841,-12842,-12841,-12841,-12842,-12842,-12843,-12843,-12843,-12844,-12844,-12845,-12843,-29987,-12842,-12842,-12843,-12843,-12843,-12844,-12843,-12844,-12844,-12845,-12845,-12845,-12846,-12846,-12846,-12847,-12847,-12848,-12848,-12849,-12848,-12849,-12848]} 1. e4 {[%emt 0:00:02]} e5 {[%emt 0:00:42]} 2. Nf3 {[%emt 0:00:06]} Nf6 {[%emt 0:00:05]} 3. Nxe5 {[%emt 0:00:44]} d6 {[%emt 0:00:05]} 4. Nf3 {[%emt 0:00:05]} Nxe4 {[%emt 0:00:06]} 5. Nc3 {[%emt 0:00:09]} Nf6 {[%emt 0:00:05]} 6. d4 {[%emt 0:01:54]} Be7 {[%emt 0:00:11]} 7. Bd3 {[%emt 0:03:43]} O-O {[%emt 0:00:13]} 8. Ne2 {[%emt 0:01:36]} Re8 {[%emt 0:01:51]} 9. O-O {[%emt 0:00:13]} Bf8 {[%emt 0:04:45]} 10. Ng3 {[%emt 0:02:58]} c5 {[%emt 0:05:37]} 11. c3 {[%emt 0:04:54]} Nc6 {[%emt 0:02:40]} 12. h3 {[%emt 0:05:25]} (12. d5 {looks sharper.} Nxd5 13. Bxh7+ Kxh7 14. Ng5+) 12... cxd4 {[%emt 0:05:44]} 13. cxd4 {[%emt 0:00:27]} h6 {[%emt 0:04:48]} 14. a3 {[%emt 0:04:23]} Be6 {[%emt 0:02:16]} 15. b4 {[%emt 0:04:07]} Bd5 {[%emt 0:02:22]} 16. Bb2 {[%emt 0:05:55]} Rc8 {[%emt 0:02:59]} 17. Rc1 {[%emt 0:04:35]} g6 {[%emt 0:03:11]} 18. Nh2 {[%emt 0:09:29]} Bg7 {[%emt 0:03:17]} 19. Re1 {[%emt 0:04:01]} Qb6 {[%emt 0:04:07]} 20. Nhf1 {[%emt 0:04:53]} Rxe1 {[%emt 0:20:02]} (20... Nxd4 21. Rxc8 Rxc8 22. Bxg6 $1 $16) 21. Qxe1 {[%emt 0:00:02]} Re8 {[%emt 0:00:13]} 22. Qd1 {[%emt 0:01:13]} Be6 {[%emt 0:01:58]} ({Resist} 22... Nxd4 23. Bxg6 $1 Nd7 24. Bh5 $18 (24. Ne3 Bb3 $16)) 23. Ne3 {[%emt 0:09:41]} Ne7 {[%emt 0:04:30]} 24. Ne2 {[%emt 0:04:18]} Ned5 {[%emt 0:01:26]} 25. Nc4 {[%emt 0:00:48]} Qd8 {[%emt 0:00:09]} 26. Qa4 {[%emt 0:03:17]} (26. b5 $11) 26... a6 $17 {[%emt 0:05:35]} 27. Na5 {[%emt 0:00:30]} (27. Nd2 $17) 27... Qb8 {[%emt 0:06:57]} (27... b5 $19 28. Qc2 Bd7) 28. Qd1 {[%emt 0:00:56]} h5 {[%emt 0:01:56]} 29. Rb1 {[%emt 0:03:01]} (29. b5 $15) 29... Bd7 {[%emt 0:00:33]} 30. Ba1 {[%emt 0:02:41]} b6 {[%emt 0:01:33]} 31. Nc4 {[%emt 0:00:20]} Bh6 {[%emt 0:00:29]} 32. Bb2 {[%emt 0:02:40]} Bb5 {[%emt 0:02:46]} (32... b5 $17 33. Nd2 Bc6) 33. Bc1 {[%emt 0:01:16]} Bg7 {[%emt 0:00:40]} 34. Bd2 {[%emt 0:03:47]} Ne4 {[%emt 0:02:44]} 35. Be1 {[%emt 0:01:23]} Bh6 {[%emt 0:01:26]} (35... Qc7 $15 36. Qb3 Qc6) 36. Qb3 {[%emt 0:01:50]} Nef6 {[%emt 0:01:43]} 37. a4 {[%emt 0:01:49]} Bd7 {[%emt 0:00:28]} 38. b5 {[%emt 0:01:05]} a5 {[%emt 0:00:56]} 39. Qa3 {[%emt 0:00:49]} Bf8 {[%emt 0:00:30]} 40. Bd2 {[%emt 0:00:00]} Be6 {[%emt 0:00:00]} 41. Qb2 {[%emt 0:21:52]} Rc8 {[%emt 0:17:17]} 42. Rc1 {[%emt 0:00:20]} Qb7 {[%emt 0:00:51]} 43. Rc2 {[%emt 0:01:12]} Re8 {[%emt 0:03:10]} 44. Qc1 {[%emt 0:00:29]} Kh7 {[%emt 0:03:24]} 45. Ng3 {[%emt 0:00:59]} ({White should try} 45. Nf4 $14) 45... Qb8 {[%emt 0:03:03]} (45... Nb4 $15 46. Bxb4 axb4) 46. Qd1 {[%emt 0:00:48]} Kg8 {[%emt 0:00:45]} 47. Qf3 {[%emt 0:00:42]} Bg7 {[%emt 0:00:29]} (47... Qd8 $1 $11) 48. Rc1 {[%emt 0:01:03]} ({White has to play} 48. Ne4 $16) 48... Rc8 {[%emt 0:00:41]} (48... Nb4 $1 $11 {remains equal.} 49. Bf1 h4) 49. Re1 {[%emt 0:02:29]} (49. Ne4 $1 $16) 49... Nb4 $11 {[%emt 0:01:48]} 50. Bxb4 {[%emt 0:06:08]} Bxc4 {[%emt 0:07:46]} 51. Bd2 {[%emt 0:01:48]} Bxd3 {[%emt 0:00:26]} 52. Qxd3 {[%emt 0:00:01]} Qb7 53. Rc1 {[%emt 0:04:24]} Rxc1+ $1 {[%emt 0:00:31]} 54. Bxc1 {[%emt 0:00:01]} Qd5 $1 {[%emt 0:00:39]} 55. Ba3 {[%emt 0:00:34]} Nd7 {[%emt 0:02:13]} 56. Qe4 {[%emt 0:02:06]} Qxd4 {[%emt 0:02:13]} 57. Qxd4 {[%emt 0:00:46]} Bxd4 {[%emt 0:00:05]} 58. Bxd6 {[%emt 0:00:11]} Bc5 {[%emt 0:00:42]} 59. Bc7 $1 {[%emt 0:00:42]} Nf6 {[%emt 0:00:49]} (59... Kf8 $1 $15) 60. Bd8 {[%emt 0:00:49]} Nd5 {[%emt 0:00:26]} 61. Ne4 {[%emt 0:00:58]} Bd4 {[%emt 0:00:16]} 62. Nd2 $2 {[%emt 0:01:19]} (62. g4 $11) 62... Kf8 {[%emt 0:01:29]} 63. Nb3 {[%emt 0:00:07]} Be5 {[%emt 0:00:34]} 64. Bg5 {[%emt 0:00:59]} (64. Nd2 $17) 64... Nc3 $19 {[%emt 0:00:17]} 65. Nd2 {[%emt 0:00:33]} (65. Kf1 {is a better defense.}) 65... Nxa4 $19 {[%emt 0:00:22]} 66. Be3 {[%emt 0:00:17]} Ke7 {[%emt 0:00:25]} 67. Kf1 {[%emt 0:00:24]} Bc7 {[%emt 0:00:19]} 68. Nc4 {[%emt 0:00:26]} Ke6 {[%emt 0:00:21]} 69. Ke2 {[%emt 0:00:09]} Kd5 {[%emt 0:00:54]} 70. Kd3 {[%emt 0:00:05]} Nc5+ {[%emt 0:00:15]} 71. Kc3 {[%emt 0:00:17]} Ne4+ {[%emt 0:00:19]} (71... f5 $19 {White must now prevent ...f4.} 72. g3 g5) 72. Kd3 $17 {[%emt 0:00:01] [#]} Nc5+ $2 {[%emt 0:00:09]} (72... Nd6 $1 $17 {[%cal Rd6c4]} 73. Nxb6+ Ke6) 73. Kc3 $19 {[%emt 0:00:04]} Nd7 {[%emt 0:00:45]} 74. Bd4 {[%emt 0:00:39]} Bd8 {[%emt 0:01:22]} 75. f3 {[%emt 0:01:25]} Bc7 {[%emt 0:00:34]} 76. g4 {[%emt 0:01:01]} (76. Ne3+ $17 {was worth a try.} Ke6 77. Kc4) 76... Ke6 {[%emt 0:00:27]} 77. Kd3 {[%emt 0:00:27]} Bd8 {[%emt 0:00:20]} 78. f4 {[%emt 0:00:55]} f5 {[%emt 0:00:28]} 79. g5 $2 {[%emt 0:00:07]} (79. gxh5 $17 gxh5 80. Be3) 79... Bc7 $19 {[%emt 0:00:20]} 80. Be3 {[%emt 0:00:23]} Kd5 {[%emt 0:00:20]} 81. h4 $2 {[%emt 0:01:00]} (81. Kc3) 81... a4 $19 {[%emt 0:01:04]} 82. Kc3 {[%emt 0:00:44]} Nc5 {[%emt 0:00:31]} 83. Kb4 {[%emt 0:00:28]} (83. Bg1 $142) 83... Nd3+ {[%emt 0:00:05]} 84. Kc3 {[%emt 0:00:19]} Nc5 {[%emt 0:00:10]} (84... Bxf4 85. Kxd3 Bxe3 86. Nxe3+ Kd6 87. Kd4 $18) 85. Kb4 {[%emt 0:00:07]} Nd3+ {[%emt 0:01:17]} 86. Kc3 {[%emt 0:00:03]} Nxf4 {[%emt 0:00:24]} 87. Nxb6+ $2 {[%emt 0:00:56]} (87. Bxb6 Ne2+ 88. Kd3 Nf4+ 89. Kd2 Kxc4 90. Bxc7) 87... Bxb6 $19 {[%emt 0:00:07]} 88. Bxb6 {[%emt 0:00:18]} a3 {[%emt 0:01:00]} 89. Kb3 {[%emt 0:01:12]} Ne2 {[%emt 0:00:25]} 90. Ba5 {[%emt 0:00:37]} Nd4+ {[%emt 0:00:32]} 91. Kxa3 {[%emt 0:00:31]} Nxb5+ {[%emt 0:00:05]} 92. Kb3 {[%emt 0:00:05]} Nd4+ {[%emt 0:00:05]} 93. Kc3 {[%emt 0:00:41]} Ke4 {[%emt 0:00:08]} 94. Bb6 {[%emt 0:00:16]} Nf3 {[%emt 0:00:09]} 95. Bf2 {[%emt 0:00:08]} f4 {[%emt 0:00:15]} 96. Kc4 {[%emt 0:00:12]} Ne5+ {[%emt 0:00:05]} 97. Kc3 {[%emt 0:00:43]} Ng4 {[%emt 0:00:05]} 98. Bb6 {[%emt 0:00:28]} f3 {[%emt 0:00:11]} (98... Ne3 $142 99. Kb4 Nd5+ 100. Kc4 Nxb6+ 101. Kc5 {[#]} f3 $1 102. Kxb6 Kd5 103. Kb5 f2 104. Kb4 f1=Q 105. Kc3 Qe2 106. Kb3 Qd2 107. Ka4 Kc4 108. Ka3 Qf2 109. Ka4 Qa7#) 99. Kd2 $19 {[%emt 0:00:14]} Ne5 {[%emt 0:00:04]} 100. Ke1 {[%emt 0:00:24]} Nc4 {[%emt 0:00:32]} 101. Bc7 {[%emt 0:00:36]} Ne3 {[%emt 0:00:09]} 102. Bg3 {[%emt 0:00:33]} Nf5 {[%emt 0:00:06]} 103. Bf2 {[%emt 0:00:33]} Kf4 {[%emt 0:00:04]} 104. Kf1 {[%emt 0:00:16]} Kg4 {[%emt 0:00:05]} 105. Kg1 {[%emt 0:00:08]} Nxh4 {[%emt 0:00:06]} 106. Be3 {[%emt 0:00:18]} Nf5 {[%emt 0:00:05]} 107. Bd2 {[%emt 0:00:24]} Ng3 {[%emt 0:00:06]} 108. Be3 {[%emt 0:00:38]} Ne4 {[%emt 0:00:05]} 109. Kh2 {[%emt 0:00:29]} Nxg5 {[%emt 0:00:05]} 0-1

[Event "Swietokrzyskie IM Chess-ch 2022"]
[Site "Zagnansk"]
[Date "2022.05.06"]
[Round "9.4"]
[White "Wikar, WFM Martyna"]
[Black "Kotyk, Michael"]
[Result "1/2-1/2"]
[ECO "C50"]
[WhiteElo "2197"]
[BlackElo "2170"]
[Annotator "TA"]
[PlyCount "145"]
[EventDate "2022.04.29"]
[EventCountry "POL"]
[SourceTitle "playchess.com"]
[Source "ChessBase"]
[SourceQuality "1"]
[TimeControl "40/5400+30:1800+30"]

{[%evp 13,145,8,23,8,6,-26,-25,-25,-19,-35,0,8,-4,-16,-9,-31,16,0,8,-14,0,-12,-30,-34,-23,-25,0,0,0,0,0,0,45,35,58,-5,-8,-33,-9,-40,-27,-45,-36,-20,0,-92,-21,-34,0,-133,-138,-133,-140,-116,28,0,0,0,0,0,0,0,0,0,0,0,0,-4,0,-35,-11,-14,9,26,41,0,0,0,0,0,0,0,0,0,0,0,0,0,0,0,0,0,0,0,0,0,39,39,39,18,25,25,39,39,39,39,39,39,39,39,39,39,39,39,39,39,39,39,39,39,39,8,39,39,39,0,0,0,0,0,0,0,0,0]} 1. e4 {[%emt 0:00:03]} e5 {[%emt 0:00:10]} 2. Nf3 {[%emt 0:00:09]} Nc6 {[%emt 0:00:05]} 3. Bc4 {[%emt 0:00:09]} Bc5 {[%emt 0:00:05]} 4. d3 {[%emt 0:00:20]} Nf6 {[%emt 0:00:06]} 5. O-O {[%emt 0:00:19]} a6 {[%emt 0:00:13]} 6. a4 {[%emt 0:00:38]} d6 {[%emt 0:00:47]} 7. c3 {[%emt 0:00:44]} O-O {[%emt 0:00:08]} 8. Nbd2 {[%emt 0:00:54] C54: Giuoco Piano: 4 c3 Nf6, main lines with 5 d4 and 5 d3.} Ba7 {[%emt 0:00:07]} 9. Re1 {[%emt 0:01:12]} Ng4 $1 {[%emt 0:00:07]} 10. Re2 {[%emt 0:01:34] Black has an edge.} Kh8 $1 {[%emt 0:00:33]} 11. h3 {[%emt 0:02:18]} Nh6 {[%emt 0:00:18]} (11... f5 $5) 12. Nf1 {[%emt 0:06:32]} f5 {[%emt 0:00:24]} 13. N1h2 {[%emt 0:12:08]} Qf6 {[%emt 0:10:55] [#]} 14. exf5 $146 {[%emt 0:09:43]} ({Predecessor:} 14. b4 Be6 15. Bxe6 Qxe6 16. b5 axb5 17. Bxh6 gxh6 18. axb5 fxe4 19. dxe4 Na5 20. Rxa5 Bxf2+ 21. Rxf2 Rxa5 {1-0 (47) Paulet,I (2281)-Bulmaga,I (2386) Bucharest 2018}) 14... Bxf5 {[%emt 0:01:19]} (14... Nxf5 $15 15. Kh1 h6) 15. Bd5 {[%emt 0:08:05]} Rab8 {[%emt 0:02:06]} 16. Kh1 {[%emt 0:04:44]} Nf7 {[%emt 0:06:23]} 17. Be3 {[%emt 0:12:30]} Bxe3 {[%emt 0:02:53]} 18. Rxe3 {[%emt 0:00:30]} Ne7 {[%emt 0:01:11]} 19. Be4 {[%emt 0:00:37]} d5 {[%emt 0:04:35]} 20. Bxf5 {[%emt 0:00:52]} Nxf5 {[%emt 0:00:05]} 21. Re2 {[%emt 0:00:21]} h5 {[%emt 0:03:49] Prevents Ng4.} 22. Qb3 {[%emt 0:04:38]} c6 {[%emt 0:01:42]} 23. Rae1 {[%emt 0:00:55][%cal Rf3e5]} Rfe8 {[%emt 0:01:26]} 24. Qb6 {[%emt 0:02:52]} (24. c4 $14) 24... Re7 $11 {[%emt 0:04:03]} 25. c4 {[%emt 0:06:22]} Rbe8 {[%emt 0:08:46] Strongly threatening ...e4.} 26. Nf1 {[%emt 0:03:20]} dxc4 {[%emt 0:19:35]} 27. dxc4 {[%emt 0:00:07]} e4 {[%emt 0:00:02]} 28. N3d2 {[%emt 0:02:00]} Ng5 {[%emt 0:00:21]} 29. Nb3 {[%emt 0:02:09] Against Nd4} (29. Ng3 $1 $11) 29... e3 {[%emt 0:11:37]} (29... Nh4 $17 {[%cal Oh4g2] White must now prevent ...Nxg2!} 30. Nbd2 Ng6) 30. Nxe3 {[%emt 0:06:07]} Nxe3 {[%emt 0:00:38]} 31. fxe3 {[%emt 0:01:16]} (31. Rxe3 $11 Ne4 32. f3 Ng3+ 33. Kg1 Rxe3 34. Rxe3 Rxe3 35. Qxe3) 31... Ne4 $17 {[%emt 0:00:33] Hoping for ...Ng3+.} 32. Kg1 {[%emt 0:00:22]} Rf8 {[%emt 0:00:57][%mdl 1024] Black has strong compensation.} 33. Qd4 {[%emt 0:01:46]} Qh4 {[%emt 0:04:36]} ({Black should try} 33... Qf5 $17 {Threatens to win with ...Rd7.} 34. Rd1 Ref7) 34. Nd2 {[%emt 0:02:16]} c5 {[%emt 0:00:01]} 35. Qd5 {[%emt 0:03:06]} Ng3 {[%emt 0:01:07]} 36. Nf3 {[%emt 0:02:17]} Nxe2+ {[%emt 0:01:20]} 37. Rxe2 {[%emt 0:00:02]} Qe4 {[%emt 0:03:21] [#] ...Qxd5 is the strong threat.} 38. Qxh5+ {[%emt 0:00:11]} Kg8 {[%emt 0:00:54]} 39. Qxc5 {[%emt 0:00:38]} Rd8 {[%emt 0:06:42]} 40. Kf2 {[%emt 0:00:00]} Re6 {[%emt 0:00:00]} 41. b4 {[%emt 0:24:03]} Rc6 {[%emt 0:22:28]} 42. Qg5 {[%emt 0:01:10]} (42. Qa5 $5 {[%cal Ra5d8]} Rcc8 43. Rd2 Rxd2+ 44. Nxd2 Rf8+ 45. Nf3 $11) 42... Rf8 {[%emt 0:00:15]} 43. Qd5+ {[%emt 0:02:40]} Re6 {[%emt 0:00:31][%cal Bc6e6,Be6e4,Be4b4,Bb4b2][%mdl 32]} 44. Qxe4 {[%emt 0:05:58]} Rxe4 $14 {[%emt 0:00:08][%mdl 4096] Endgame KRR-KRN} 45. Rc2 {[%emt 0:00:09]} b5 {[%emt 0:01:44]} 46. axb5 {[%emt 0:00:52]} axb5 {[%emt 0:00:01]} 47. cxb5 {[%emt 0:00:13]} Rxb4 {[%emt 0:00:24]} 48. Rc5 Rb2+ {[%emt 0:00:39]} 49. Kg3 {[%emt 0:00:45]} Re8 {[%emt 0:00:55]} 50. e4 {[%emt 0:00:20]} Rb4 {[%emt 0:01:59]} 51. e5 {[%emt 0:02:02]} Rb8 {[%emt 0:00:18]} 52. Rc7 {[%emt 0:01:24]} R4xb5 {[%emt 0:00:26]} 53. h4 {[%emt 0:01:17]} Re8 {[%emt 0:01:26]} 54. Kg4 {[%emt 0:00:34]} Rbxe5 {[%emt 0:00:34]} 55. Nxe5 {[%emt 0:00:06]} Rxe5 $11 {[%emt 0:00:03] KR-KR} 56. Kf4 {[%emt 0:00:35]} Ra5 {[%emt 0:01:38]} 57. g4 {[%emt 0:00:30]} Kh7 {[%emt 0:02:00]} 58. h5 {[%emt 0:00:34]} Ra4+ {[%emt 0:01:42]} 59. Kg5 {[%emt 0:00:10]} Ra5+ {[%emt 0:00:06]} 60. Kh4 {[%emt 0:00:18]} Ra1 {[%emt 0:00:45]} 61. Rc5 {[%emt 0:00:24]} Rb1 {[%emt 0:01:11]} 62. Rc4 {[%emt 0:00:33]} Ra1 {[%emt 0:00:12]} 63. Kg5 {[%emt 0:00:29]} Ra5+ {[%emt 0:00:17]} 64. Kf4 {[%emt 0:00:06]} Ra1 {[%emt 0:00:09]} 65. Re4 {[%emt 0:00:17]} Rf1+ {[%emt 0:01:02]} 66. Kg5 {[%emt 0:00:13]} Ra1 {[%emt 0:00:07]} 67. Kf5 {[%emt 0:00:44]} Rf1+ {[%emt 0:00:16]} (67... g6+ $5 68. hxg6+ Kh6 $14) 68. Rf4 {[%emt 0:00:06]} Ra1 {[%emt 0:00:30]} 69. g5 {[%emt 0:00:36]} Rh1 {[%emt 0:01:31] The position is equal.} 70. Kg4 {[%emt 0:00:22]} Rg1+ {[%emt 0:00:27]} 71. Kh4 {[%emt 0:00:13]} Rh1+ {[%emt 0:00:02]} 72. Kg4 {[%emt 0:00:06]} Rg1+ {[%emt 0:00:04]} 73. Kh4 {[%emt 0:00:04] Weighted Error Value: White=0.18 (very precise) /Black=0.13 (very precise)} 1/2-1/2

[Event "Swietokrzyskie IM Chess-ch 2022"]
[Site "Zagnansk"]
[Date "2022.05.06"]
[Round "9.5"]
[White "Prokofiev, Valentyn"]
[Black "Nowak, FM Lukasz"]
[Result "1-0"]
[ECO "A20"]
[WhiteElo "2287"]
[BlackElo "2376"]
[Annotator "TA"]
[PlyCount "141"]
[EventDate "2022.04.29"]
[EventCountry "POL"]
[SourceTitle "playchess.com"]
[Source "ChessBase"]
[SourceQuality "1"]
[TimeControl "40/5400+30:1800+30"]

{[%evp 13,141,10,17,0,9,-2,25,-52,-66,-65,-62,-50,-57,-58,-58,-53,-41,-44,-16,-23,-24,-8,0,0,-12,-20,-24,-21,-20,-22,-16,-15,0,-6,0,-16,-21,-44,-28,-22,-11,-45,-6,-14,0,-48,0,-45,-51,-80,-90,-116,-61,-68,-64,-54,-55,-117,-64,-58,-9,-7,0,0,0,0,-24,-16,16,0,52,43,322,31,141,141,162,157,156,151,603,625,29987,29988,29988,29989,29989,29990,29990,281,277,272,243,253,293,252,287,203,190,189,184,189,231,231,333,320,327,328,408,409,392,382,846,848,848,840,978,869,869,869,854,854,838,777,838,779,814,812,1013,1013]} 1. c4 {[%emt 0:00:01]} e5 {[%emt 0:00:32]} 2. g3 {[%emt 0:00:07]} d6 {[%emt 0:00:10]} 3. Bg2 {[%emt 0:00:06]} f5 {[%emt 0:00:10]} 4. Nc3 {[%emt 0:00:58]} Nf6 {[%emt 0:00:11]} 5. d3 {[%emt 0:00:20]} Be7 {[%emt 0:00:15]} 6. Nf3 {[%emt 0:01:51]} O-O {[%emt 0:00:15]} 7. O-O {[%emt 0:00:29]} c6 {[%emt 0:02:59]} 8. e4 {[%emt 0:05:05] A21: English Opening: 1...e5 2 Nc3.} Na6 {[%emt 0:22:33]} 9. Qe2 {[%emt 0:36:05]} Qe8 {[%emt 0:06:32] [#]} 10. d4 $146 {[%emt 0:06:04]} (10. Nh4 $1 $11) ({Predecessor:} 10. Re1 fxe4 11. dxe4 Qh5 12. Ng5 Bg4 13. f3 Bd7 14. f4 exf4 15. gxf4 Ng4 16. Nf3 {½-½ (37) Cavender,S (2137)-Fedorko,A (2053) IECC email 1999}) 10... fxe4 $15 {[%emt 0:01:19]} 11. Nxe4 {[%emt 0:00:16]} Nxe4 {[%emt 0:00:17]} 12. Qxe4 {[%emt 0:00:05]} Bf5 {[%emt 0:00:14]} 13. Qe3 {[%emt 0:06:12]} Nb4 $1 {[%emt 0:08:58]} 14. Ne1 {[%emt 0:01:18]} exd4 {[%emt 0:05:05]} 15. Qxd4 {[%emt 0:00:41]} Qg6 {[%emt 0:01:44]} 16. Be3 {[%emt 0:09:17]} Bf6 {[%emt 0:12:16]} 17. Qd2 {[%emt 0:01:24]} Nd3 {[%emt 0:00:27]} 18. Nxd3 {[%emt 0:00:55]} Bxd3 {[%emt 0:00:09]} 19. Rfe1 {[%emt 0:02:12]} Bxc4 {[%emt 0:03:57]} 20. Qxd6 {[%emt 0:00:10]} Qf7 {[%emt 0:02:39]} (20... Bxb2 21. Qb4 Bxa1 22. Qxc4+ Qf7 23. Qxf7+ Rxf7 24. Rxa1 $16) 21. Qa3 {[%emt 0:05:12]} Rfd8 {[%emt 0:08:44]} 22. Bf1 {[%emt 0:14:27]} Bd5 {[%emt 0:00:41]} 23. Bg2 {[%emt 0:00:38]} Bc4 {[%emt 0:02:59]} 24. Bf1 $1 {[%emt 0:00:15]} Be6 {[%emt 0:02:09]} 25. Bg2 {[%emt 0:02:30]} Rd7 {[%emt 0:01:12]} 26. h4 {[%emt 0:01:11]} a6 {[%emt 0:01:03]} 27. Bf1 {[%emt 0:02:22]} Rf8 {[%emt 0:00:45]} 28. Qb4 {[%emt 0:00:26]} Bd5 {[%emt 0:00:40][%cal Of6c3]} (28... Bxa2 $2 29. Rxa2 $1 {[%mdl 512]} Kh8 30. Raa1 $18) 29. Rad1 {[%emt 0:01:46]} (29. Bh3 $11 {was preferrable.}) 29... Be7 {[%emt 0:02:21]} (29... Bxa2 $2 30. Rxd7 Qxd7 31. b3 $18) (29... Re7 $15) 30. Qa4 {[%emt 0:02:00][%cal Od1d5]} Bd6 {[%emt 0:04:56][%cal Od6g3]} (30... Qf3 31. Rxd5 $1 Rxd5 32. Qb3 $11) 31. Bh3 {[%emt 0:01:01]} Re7 {[%emt 0:00:22][%cal Oe7e3]} (31... Qf3 $2 32. Rxd5 $1 {[%mdl 512]} Bxg3 33. Bg2 (33. Rxd7 Bxf2+ 34. Bxf2 Qxf2+ 35. Kh1 Qxe1+ 36. Kh2 Qe5+ 37. Kh1 Qe1+ 38. Kh2 Rf2+ 39. Bg2 Qe5+ 40. Kg1 Qe1+ 41. Kh2 Qe5+ 42. Kg1 Qe1+ 43. Kh2 $11) (33. Be6+ Kh8 $16) 33... Bxf2+ 34. Kh1 $18) 32. Qc2 {[%emt 0:00:28] [#]} Qf3 {[%emt 0:01:57] Inhibits Bg2.} (32... Bxg3 $1 $17 {[%cal Of7f3][%mdl 512] ( -> ...Qf3!)} 33. Rxd5 (33. fxg3 $2 Qf3 $19) 33... Rxe3 $1 {[%mdl 512]} 34. Rxe3 Bxf2+ 35. Kf1 Bxe3+ 36. Rf5 Qxa2 37. Rxf8+ Kxf8 38. Qf5+ Qf7 39. Qxf7+ Kxf7) 33. Rxd5 $1 {[%emt 0:00:20]} cxd5 {[%emt 0:01:05]} 34. Bg2 {[%emt 0:00:01]} Qf5 {[%emt 0:00:33]} 35. Qb3 {[%emt 0:00:08] [#]} (35. Qxf5 $15 Rxf5 36. Rf1) 35... Kh8 {[%emt 0:00:25]} (35... Bc5 $1 $17 {[%mdl 512]} 36. Rf1 Bxe3 37. fxe3 Qc8 38. Bxd5+ Kh8 39. Rxf8+ Qxf8) 36. Rd1 {[%emt 0:00:19]} Rfe8 {[%emt 0:03:38]} (36... Qg4 $15 37. Rxd5 Bxg3 $1 {[%mdl 512]}) 37. Rxd5 $11 {[%emt 0:01:10]} Qf6 {[%emt 0:00:17][%cal Od6g3] And now ...Bxg3! would win.} 38. Bg5 {[%emt 0:00:51]} Re1+ {[%emt 0:00:13]} 39. Kh2 $1 {[%emt 0:00:03]} Qf8 {[%emt 0:01:16] aiming for ...R1e2.} (39... Qxf2 $2 40. Rxd6 h6 41. Bxh6 $1 {[%mdl 512]} gxh6 42. Qxb7 $18) 40. Qd3 {[%emt 0:00:00] Rf5 is the strong threat.} Bb8 {[%emt 0:00:00]} ({Don't play} 40... Qxf2 41. Rxd6 R1e2 42. Qd5 $18) 41. Rf5 {[%emt 0:19:39][%mdl 1024] White has compensation.} Qb4 {[%emt 0:19:54]} ({Black should play} 41... Qd6 $1 $11 42. Qxd6 Bxd6) 42. Qf3 $14 {[%emt 0:03:01][%cal Og5d2]} b6 $2 {[%emt 0:02:37][%mdl 8192] [#]} ({Less strong is} 42... h6 43. Qh5 Qd6 44. Bf6 $1 $16 {[%mdl 512]}) (42... Rg8 $14) 43. a3 $2 {[%emt 0:00:49]} ({Only move:} 43. Bd2 $1 $18 {[%cal Rd2b4][%mdl 512]} Qxh4+ 44. Bh3 Bxg3+ 45. Kg2) 43... Qd6 {[%emt 0:01:57] [#]} (43... Qc4 $1 $14) 44. Bd2 $1 $16 {[%emt 0:02:18][%mdl 512] Really sharp!} R1e6 {[%emt 0:03:36]} (44... R1e5 45. Rf7) 45. Bc3 {[%emt 0:01:04] Against Rf6. Black must now prevent Bf1.} Qd8 {[%emt 0:01:40]} 46. Qh5 $1 $40 {[%emt 0:01:34][%cal Oc3g7][%mdl 128] White wants to mate with Bxg7+! Black is in trouble.} R8e7 {[%emt 0:03:56]} (46... Rf8 $16) 47. Bd5 $18 {[%emt 0:01:24] This bishop pair is nice.} Rd6 {[%emt 0:02:10]} 48. Qf3 {[%emt 0:02:18]} Re8 {[%emt 0:00:30] [#]} 49. Bxg7+ $1 {[%emt 0:00:26][%mdl 576] Decoy} Kxg7 {[%emt 0:00:08]} 50. Rf7+ {[%emt 0:00:02]} Kh8 {[%emt 0:01:12] [#]} 51. Qc3+ $2 {[%emt 0:00:04]} (51. Qh5 $1 {mates} h6 {[#]} 52. Qf5 $1 Rg6 53. Qxg6 Bxg3+ 54. fxg3 Re2+ 55. Kg1 Re1+ 56. Kf2) 51... Rf6 {[%emt 0:00:10]} 52. Qxf6+ {[%emt 0:00:02]} Qxf6 {[%emt 0:00:08]} 53. Rxf6 {[%emt 0:00:02][%mdl 4096] Endgame KRB-KRB} Bc7 {[%emt 0:01:03]} 54. Rc6 {[%emt 0:02:32]} Re7 {[%emt 0:00:46]} 55. h5 {[%emt 0:00:43] Strongly threatening f4.} Re5 {[%emt 0:01:25]} 56. Bf3 {[%emt 0:00:24]} Rc5 {[%emt 0:00:17]} 57. Re6 {[%emt 0:00:51]} Kg8 {[%emt 0:00:45]} 58. Re7 {[%emt 0:00:46]} h6 {[%emt 0:00:36]} (58... Bd6 $142 59. Re2 a5) 59. Kg2 {[%emt 0:00:22]} a5 {[%emt 0:00:19]} 60. Re6 {[%emt 0:00:16]} Kg7 {[%emt 0:00:42]} 61. Rg6+ {[%emt 0:00:13]} Kf7 {[%emt 0:00:11]} 62. Rxh6 {[%emt 0:00:32]} Rc2 $2 {[%emt 0:00:26]} (62... Be5 63. Rxb6 Bd4) 63. Be4 {[%emt 0:00:06] White is clearly winning.} Rc5 {[%emt 0:00:23]} 64. b4 {[%emt 0:00:44]} Rc3 {[%emt 0:00:21]} 65. bxa5 {[%emt 0:00:27]} bxa5 {[%emt 0:00:09]} 66. Rg6 {[%emt 0:00:43]} Be5 {[%emt 0:00:15]} 67. Bd5+ {[%emt 0:01:45]} Kf8 {[%emt 0:00:16]} 68. h6 {[%emt 0:00:56][%cal Bh5h6,Bh6h7][%mdl 32]} Rc5 {[%emt 0:00:53]} 69. Rg8+ {[%emt 0:00:26]} Ke7 {[%emt 0:00:11] [#]} 70. h7 $1 {[%emt 0:00:17]} Rxd5 {[%emt 0:00:14]} (70... Bb2 71. Bf3) 71. Rg5 {[%emt 0:00:02] Weighted Error Value: White=0.22 (precise) /Black=0.52} 1-0